bitfinex-derivatives/quotes_BTCF0:USTF0_20250406
["timestamp","ask_amount","ask_price","bid_price","bid_amount"]
[1743983432007,0.19073372,78435.0,78434.0,0.95439956]
[1743983432409,0.22726092,78441.0,78440.0,0.1275981]
[1743983432609,0.22726092,78441.0,78440.0,0.4883981]
[1743983432911,0.12876,78457.0,78440.0,0.4883981]
[1743983432912,0.12876,78457.0,78450.0,0.1275819]
[1743983433111,0.12777153,78451.0,78450.0,0.3608]
[1743983433300,0.13720864,78451.0,78450.0,0.3608]
[1743983434319,0.00019133,78451.0,78450.0,0.4883819]
[1743983434703,0.13744514,78451.0,78450.0,0.3608]
[1743983435007,0.1275916,78444.0,78443.0,0.1895]
[1743983435213,0.1284316,78444.0,78443.0,0.00064]
[1743983435917,0.3183316,78444.0,78443.0,0.00064]
[1743983436917,0.19074,78444.0,78443.0,0.00064]
[1743983437109,0.19074,78444.0,78443.0,0.1282332]
[1743983437310,0.19574,78444.0,78443.0,0.1282332]
[1743983437915,0.19074,78444.0,78443.0,0.1282332]
[1743983438122,0.00584,78444.0,78443.0,0.1282332]
[1743983438420,0.005,78444.0,78443.0,0.1282332]
[1743983439218,0.1325916,78444.0,78443.0,0.00064]
[1743983439521,0.1335116,78444.0,78443.0,0.00064]
[1743983439715,0.0637996,78440.0,78432.0,0.0638054]
[1743983440022,0.1276095,78433.0,78432.0,0.00064]
[1743983440227,0.1276095,78433.0,78432.0,0.1282511]
[1743983440520,0.1276093,78435.0,78434.0,0.127607]
[1743983441019,0.1914177,78432.0,78431.0,0.1276128]
[1743983441218,0.0638074,78430.0,78425.0,0.3608]
[1743983441422,0.3682,78429.0,78428.0,0.1276176]
[1743983442007,0.001,78435.0,78434.0,0.1276079]
[1743983442216,0.001,78435.0,78434.0,0.4884079]
[1743983442411,0.001,78435.0,78434.0,0.6767079]
[1743983442610,0.5069981,78440.0,78439.0,0.1275997]
[1743983442911,0.3794,78440.0,78439.0,0.1275997]
[1743983443511,0.3794,78440.0,78439.0,0.3158997]
[1743983444521,0.3794,78440.0,78439.0,0.1275997]
[1743983445128,0.38524,78440.0,78439.0,0.1282397]
[1743983445425,0.38524,78440.0,78439.0,0.3142397]
[1743983445722,0.38024,78440.0,78439.0,0.3142397]
[1743983446119,0.38024,78440.0,78439.0,0.1282397]
[1743983446324,0.5078381,78440.0,78439.0,0.00064]
[1743983448428,0.5128381,78440.0,78439.0,0.00064]
[1743983450230,0.5078381,78440.0,78439.0,0.00064]
[1743983450525,0.5128381,78440.0,78439.0,0.00064]
[1743983451925,0.52275339,78440.0,78439.0,0.00064]
[1743983452727,0.5136,78440.0,78439.0,0.1282397]
[1743983452932,0.6411981,78440.0,78439.0,0.00064]
[1743983454132,0.1276287,78423.0,78418.0,0.0638169]
[1743983454331,0.3608,78420.0,78419.0,0.0638161]
[1743983454632,0.36184001,78420.0,78419.0,0.0638161]
[1743983455137,0.00104001,78420.0,78419.0,0.0638161]
[1743983455334,0.00019133,78428.0,78427.0,0.1276193]
[1743983455633,0.00019133,78428.0,78427.0,0.4884193]
[1743983455937,0.00019133,78428.0,78427.0,1.9884193]
[1743983456336,0.12780893,78428.0,78427.0,1.9884193]
[1743983456538,0.1276307,78420.0,78408.0,0.3608]
[1743983456734,0.1276307,78420.0,78419.0,0.1276323]
[1743983456735,0.1914462,78420.0,78419.0,0.1276323]
[1743983456935,0.1276453,78411.0,78392.0,0.0638378]
[1743983457236,0.4982275,78411.0,78399.0,0.4884633]
[1743983457427,0.4982275,78411.0,78399.0,0.3608]
[1743983457632,0.50798273,78411.0,78399.0,0.3608]
[1743983457832,0.87978273,78411.0,78399.0,0.3608]
[1743983458035,0.87978273,78411.0,78398.0,0.00014676]
[1743983458237,0.1276616,78401.0,78398.0,0.00014676]
[1743983458539,0.2559416,78401.0,78390.0,0.0638396]
[1743983458745,0.2559416,78401.0,78391.0,0.87160275]
[1743983458935,0.6277416,78401.0,78393.0,0.0638372]
[1743983459135,0.6277416,78401.0,78393.0,0.1276741]
[1743983459338,0.6277416,78401.0,78391.0,0.80776425]
[1743983459339,0.6277416,78401.0,78392.0,0.063838]
[1743983459532,0.50008,78401.0,78400.0,0.50058339]
[1743983460033,0.6285016,78401.0,78400.0,0.1283432]
[1743983460239,0.6285016,78401.0,78400.0,0.00068]
[1743983460240,0.73336,78401.0,78400.0,0.00068]
[1743983460435,0.8616,78401.0,78400.0,0.1276632]
[1743983460636,0.9892616,78401.0,78400.0,0.00072]
[1743983460838,0.1276794,78391.0,78388.0,0.063841]
[1743983461143,0.3906,78390.0,78389.0,0.3083811]
[1743983461439,0.5190395,78390.0,78389.0,0.00068]
[1743983461629,0.5190395,78390.0,78389.0,0.1283611]
[1743983461836,0.5190395,78390.0,78389.0,0.00068]
[1743983462532,0.8798395,78390.0,78389.0,0.00068]
[1743983462729,0.1276828,78388.0,78387.0,0.00102057]
[1743983462942,0.1284028,78388.0,78387.0,0.00102057]
[1743983463137,0.1284028,78388.0,78374.0,0.4885055]
[1743983463138,0.1277039,78375.0,78374.0,0.3608]
[1743983463335,0.2566639,78375.0,78374.0,0.36144]
[1743983463535,0.1277153,78368.0,78359.0,0.37292019]
[1743983463732,0.1286353,78368.0,78367.0,0.36172]
[1743983464438,0.3085353,78368.0,78367.0,0.36172]
[1743983464640,0.4367353,78368.0,78367.0,0.36172]
[1743983465029,0.7975353,78368.0,78367.0,0.00092]
[1743983465233,0.1277219,78364.0,78359.0,0.37292019]
[1743983465536,0.1277284,78360.0,78359.0,0.37292019]
[1743983465843,0.4885284,78360.0,78359.0,0.31492339]
[1743983466038,0.1277414,78352.0,78351.0,0.44696425]
[1743983466245,0.127761,78340.0,78335.0,0.52145829]
[1743983466440,0.616721,78340.0,78335.0,0.52145829]
[1743983466633,0.1277675,78336.0,78335.0,0.52145829]
[1743983467041,0.1287675,78336.0,78335.0,0.52145829]
[1743983467552,0.001,78336.0,78335.0,0.64922749]
[1743983467843,0.638351,78396.0,78335.0,0.64922749]
[1743983467844,0.00019133,78359.0,78339.0,0.001]
[1743983468140,0.063849,78379.0,78358.0,1.8608]
[1743983468332,0.1862,78375.0,78374.0,0.1277056]
[1743983468533,0.15151605,78382.0,78381.0,0.1276942]
[1743983468736,0.00966903,78399.0,78381.0,0.3608]
[1743983468933,0.1276909,78383.0,78382.0,0.1884]
[1743983469138,0.1276925,78382.0,78381.0,0.3608]
[1743983469341,0.1862,78382.0,78381.0,0.3608]
[1743983469541,0.3138925,78382.0,78381.0,0.4884942]
[1743983469750,0.3138925,78382.0,78381.0,0.3608]
[1743983469933,0.0638501,78378.0,78374.0,0.00019146]
[1743983470139,0.4885039,78375.0,78374.0,0.00019146]
[1743983470445,0.1277251,78362.0,78361.0,0.3608]
[1743983470743,0.1277349,78356.0,78355.0,0.1887]
[1743983470940,0.1284549,78356.0,78355.0,0.00076]
[1743983471140,0.1277445,78351.0,78350.0,0.1277439]
[1743983471345,0.1277445,78351.0,78350.0,0.1284639]
[1743983471548,0.1284645,78351.0,78350.0,0.00072]
[1743983471746,0.13785633,78351.0,78350.0,0.00072]
[1743983471939,0.1277659,78337.0,78336.0,0.3608]
[1743983472133,0.1959,78350.0,78336.0,0.36144]
[1743983472349,0.19662,78350.0,78349.0,0.1277463]
[1743983472549,0.19662,78350.0,78349.0,0.1284663]
[1743983472845,0.3243647,78350.0,78349.0,0.00072]
[1743983473545,0.3243647,78350.0,78349.0,0.4892663]
[1743983473846,0.19762,78350.0,78349.0,0.00072]
[1743983474047,0.3253647,78350.0,78349.0,0.1284663]
[1743983474440,0.00939183,78351.0,78349.0,0.36152]
[1743983474649,0.00084,78351.0,78350.0,0.191617]
[1743983474948,0.3608,78352.0,78350.0,0.00084]
[1743983475140,0.1277621,78340.0,78339.0,0.1277618]
[1743983475343,0.3696,78351.0,78335.0,0.3608]
[1743983475543,0.1277561,78344.0,78343.0,0.1277549]
[1743983475739,0.3608,78344.0,78334.0,0.1917]
[1743983476045,0.51204,78343.0,78330.0,0.0638882]
[1743983476350,0.1277724,78333.0,78332.0,1.5]
[1743983476541,0.1277724,78333.0,78332.0,1.627774]
[1743983476747,0.1997,78335.0,78334.0,0.1277708]
[1743983476954,0.1997,78335.0,78332.0,0.0638864]
[1743983476955,0.0638821,78338.0,78332.0,0.0638864]
[1743983477151,0.1997,78334.0,78333.0,0.1277724]
[1743983477349,0.12804,78335.0,78334.0,0.1277708]
[1743983477551,0.12823146,78340.0,78339.0,0.1277626]
[1743983477748,0.1277671,78337.0,78334.0,0.3608]
[1743983478050,0.1277652,78338.0,78337.0,0.1277659]
[1743983478552,0.12823146,78340.0,78339.0,0.1277626]
[1743983478758,0.1277658,78338.0,78335.0,0.0638844]
[1743983479054,0.1277658,78338.0,78337.0,0.1277654]
[1743983479647,0.1277692,78335.0,78334.0,0.003]
[1743983480053,0.1286892,78335.0,78334.0,0.00392]
[1743983480350,0.1286892,78335.0,78334.0,0.1286908]
[1743983481252,0.00592,78335.0,78334.0,0.2796908]
[1743983481553,0.0638707,78352.0,78344.0,0.0638771]
[1743983481847,0.0638707,78352.0,78336.0,0.0638837]
[1743983481848,0.00064,78352.0,78351.0,0.1277431]
[1743983482048,0.1277391,78354.0,78351.0,0.00112]
[1743983482251,0.0638679,78356.0,78355.0,0.1277365]
[1743983482754,0.06506791,78356.0,78355.0,0.1289365]
[1743983483548,0.00120001,78356.0,78355.0,0.1289365]
[1743983483745,0.00620001,78356.0,78355.0,0.1299365]
[1743983484145,0.00620001,78356.0,78355.0,0.25755995]
[1743983484355,0.005,78356.0,78355.0,0.25755995]
[1743983484651,0.00612001,78356.0,78355.0,0.25755995]
[1743983485051,0.005,78356.0,78355.0,0.25755995]
[1743983485551,0.063848,78380.0,78362.0,0.1277251]
[1743983485756,0.12788,78379.0,78378.0,0.1276991]
[1743983486054,0.00979744,78379.0,78378.0,0.1288191]
[1743983486259,0.12788,78397.0,78396.0,0.1276681]
[1743983486553,0.1276681,78397.0,78396.0,0.1276681]
[1743983486750,0.1276681,78397.0,78396.0,0.00112]
[1743983486950,0.1276807,78391.0,78390.0,0.1276784]
[1743983487146,0.1276795,78390.0,78389.0,0.00019133]
[1743983487457,0.1276795,78390.0,78389.0,0.00139133]
[1743983487458,0.6813795,78390.0,78389.0,0.00139133]
[1743983487642,0.6813795,78390.0,78389.0,0.00019133]
[1743983488046,0.1277056,78374.0,78373.0,0.3608]
[1743983488357,0.13740146,78374.0,78373.0,0.36192]
[1743983488951,0.37699586,78374.0,78373.0,0.36192]
[1743983489255,0.50470146,78374.0,78373.0,0.36192]
[1743983489457,0.127717,78367.0,78366.0,0.00019133]
[1743983489650,0.13832588,78367.0,78366.0,0.00019133]
[1743983490158,0.13896588,78367.0,78366.0,0.00019133]
[1743983490458,0.12773,78359.0,78343.0,0.3608]
[1743983490651,0.12849,78359.0,78358.0,0.36156]
[1743983491357,0.50869,78359.0,78358.0,0.36156]
[1743983491753,0.50869,78359.0,78236.0,0.10838392]
[1743983491754,0.89176,78359.0,78328.0,0.45068175]
[1743983492057,0.89176,78359.0,78328.0,0.57910235]
[1743983492058,0.3608,78329.0,78328.0,0.57910235]
[1743983492260,0.36148,78329.0,78328.0,0.45132175]
[1743983492455,0.1277789,78329.0,78328.0,0.45132175]
[1743983492655,0.1277789,78329.0,78328.0,0.00064]
[1743983492656,0.1284989,78329.0,78328.0,0.00064]
[1743983492857,0.1277953,78319.0,78318.0,0.3608]
[1743983493066,0.1278001,78316.0,78301.0,0.5463]
[1743983493260,0.127823,78302.0,78301.0,0.1855]
[1743983493558,0.489423,78302.0,78301.0,0.18618]
[1743983493762,0.489303,78302.0,78301.0,0.18618]
[1743983493963,0.489303,78302.0,78301.0,0.3140046]
[1743983494158,0.73268,78302.0,78301.0,0.18618]
[1743983494358,0.73268,78302.0,78301.0,0.3140046]
[1743983494560,0.18758,78302.0,78301.0,0.3140046]
[1743983494758,0.1843,78313.0,78312.0,0.1278067]
[1743983494956,0.18498,78313.0,78312.0,0.1284867]
[1743983495457,0.128485,78313.0,78312.0,0.00068]
[1743983495662,0.128485,78313.0,78302.0,0.0639113]
[1743983495663,0.1278214,78303.0,78302.0,0.1278223]
[1743983495860,0.1278214,78303.0,78302.0,0.3087623]
[1743983496163,0.1285014,78303.0,78302.0,0.3087623]
[1743983496558,0.00068,78303.0,78302.0,0.3087623]
[1743983497261,0.00068,78303.0,78302.0,0.3147623]
[1743983497451,0.1955,78311.0,78307.0,0.1278147]
[1743983497649,0.1278132,78308.0,78307.0,0.1285347]
[1743983497855,0.4892932,78308.0,78307.0,0.00072]
[1743983498053,0.4892932,78308.0,78307.0,0.1285348]
[1743983498251,0.4892932,78308.0,78307.0,0.00072]
[1743983498659,0.1278246,78301.0,78300.0,0.1]
[1743983498863,0.00068,78301.0,78300.0,0.6167263]
[1743983499064,0.1278205,78304.0,78303.0,0.1278214]
[1743983499265,0.1285805,78304.0,78303.0,0.1285814]
[1743983499467,0.00076,78304.0,78303.0,0.1285814]
[1743983499863,0.18706,78304.0,78303.0,0.1285814]
[1743983500054,0.3608,78308.0,78303.0,0.1285814]
[1743983500055,0.12768,78311.0,78308.0,0.063906]
[1743983500273,0.12768,78311.0,78310.0,0.1278099]
[1743983500554,0.1905,78315.0,78314.0,0.1278034]
[1743983500757,0.1817,78325.0,78322.0,0.1277904]
[1743983500960,0.1278132,78308.0,78303.0,0.3668]
[1743983501160,0.1278031,78315.0,78314.0,0.1278034]
[1743983501358,0.1278001,78316.0,78315.0,0.1278017]
[1743983501754,0.00019145,78323.0,78320.0,0.0638962]
[1743983501960,0.01085015,78323.0,78314.0,0.3608]
[1743983502159,0.1278018,78315.0,78314.0,0.3608]
[1743983502359,0.0638998,78317.0,78314.0,0.3608]
[1743983502558,0.3722,78316.0,78314.0,0.3608]
[1743983502868,0.1905,78322.0,78321.0,0.127792]
[1743983503065,0.00019145,78323.0,78322.0,0.1277904]
[1743983503265,0.00019145,78323.0,78322.0,0.5046904]
[1743983503567,0.00019145,78323.0,78322.0,0.63236926]
[1743983504058,0.00019145,78323.0,78322.0,0.5046904]
[1743983504260,0.00019145,78323.0,78322.0,0.3769]
[1743983504566,0.00019145,78323.0,78322.0,0.5046904]
[1743983504869,0.00019145,78323.0,78322.0,0.63236763]
[1743983505069,0.00019145,78323.0,78322.0,0.5054504]
[1743983505263,0.00019145,78323.0,78322.0,0.8662504]
[1743983505463,0.00019145,78323.0,78322.0,0.8722504]
[1743983505771,0.00019145,78323.0,78322.0,2.3722504]
[1743983506167,0.00019145,78323.0,78322.0,2.3662504]
[1743983506570,0.00946875,78329.0,78328.0,0.1277806]
[1743983506866,0.0008,78329.0,78328.0,0.1285806]
[1743983507172,0.00955506,78332.0,78331.0,0.1277757]
[1743983507369,0.00955506,78332.0,78331.0,0.0008]
[1743983507370,0.0008,78332.0,78331.0,0.0008]
[1743983507561,0.672174,78332.0,78331.0,0.0008]
[1743983507772,0.672174,78332.0,78323.0,0.1801]
[1743983507773,0.2474877,78332.0,78329.0,0.1277773]
[1743983507969,0.1277773,78330.0,78329.0,0.00088]
[1743983508172,0.1277855,78325.0,78324.0,0.00019145]
[1743983508368,0.1285455,78325.0,78324.0,0.00095145]
[1743983510878,0.00076,78325.0,78324.0,0.00095145]
[1743983511068,0.00076,78325.0,78324.0,0.12873855]
[1743983511274,0.00076,78325.0,78324.0,0.25641252]
[1743983511468,0.1808,78329.0,78328.0,0.1277806]
[1743983512276,0.01076087,78345.0,78331.0,0.1277757]
[1743983512478,0.1965,78338.0,78337.0,0.1277659]
[1743983513379,0.20600302,78338.0,78337.0,0.1277659]
[1743983513972,0.33376732,78338.0,78337.0,0.1277659]
[1743983514172,0.51596732,78338.0,78337.0,0.1277659]
[1743983514384,0.38820302,78338.0,78337.0,0.1277659]
[1743983514879,0.51596732,78338.0,78337.0,0.1277659]
[1743983515079,0.51684732,78338.0,78337.0,0.1277659]
[1743983515287,0.51684732,78338.0,78337.0,0.1286459]
[1743983515485,0.38908302,78338.0,78337.0,0.1286459]
[1743983515779,0.51684732,78338.0,78337.0,0.1286459]
[1743983518081,0.51684732,78338.0,78337.0,0.00088]
[1743983518681,0.1277662,78337.0,78335.0,0.0638839]
[1743983518980,0.1277675,78336.0,78335.0,0.00084]
[1743983519178,0.5096275,78336.0,78335.0,0.00084]
[1743983520779,0.1277855,78325.0,78308.0,0.0639059]
[1743983520983,0.6159055,78325.0,78305.0,0.424709]
[1743983521287,0.1278018,78315.0,78305.0,0.3608]
[1743983521486,0.0639027,78313.0,78306.0,1.5]
[1743983521689,0.1278148,78307.0,78306.0,1.5]
[1743983521991,0.1278197,78304.0,78303.0,0.22500999]
[1743983522292,0.1278246,78301.0,78300.0,0.1]
[1743983522979,0.1278279,78299.0,78298.0,2e-08]
[1743983523183,0.4886279,78299.0,78298.0,2e-08]
[1743983523379,0.1278508,78285.0,78271.0,0.52145829]
[1743983523683,0.12728,78285.0,78280.0,0.1278574]
[1743983523877,0.6159308,78285.0,78276.0,0.1814]
[1743983524082,0.3608,78285.0,78284.0,0.57853415]
[1743983524285,0.4886508,78285.0,78284.0,0.45068175]
[1743983524485,0.6724508,78285.0,78284.0,0.45068175]
[1743983524685,0.1838,78285.0,78284.0,0.57853415]
[1743983524884,0.3116508,78285.0,78284.0,0.45068175]
[1743983525089,0.3124508,78285.0,78284.0,0.45132175]
[1743983525492,0.68286307,78285.0,78284.0,0.45132175]
[1743983525686,0.68286307,78285.0,78284.0,0.45732175]
[1743983525881,0.127872,78272.0,78271.0,0.52145829]
[1743983526087,0.615952,78272.0,78271.0,0.52209829]
[1743983526284,0.616872,78272.0,78271.0,0.52209829]
[1743983526588,0.489,78272.0,78271.0,0.52209829]
[1743983526786,0.1282,78272.0,78271.0,0.1285136]
[1743983526991,0.00092,78272.0,78271.0,0.1285136]
[1743983527188,0.00961227,78285.0,78284.0,0.1278524]
[1743983527394,0.01025227,78285.0,78284.0,0.1284924]
[1743983527587,0.00064,78285.0,78284.0,0.1284924]
[1743983527786,0.191746,78298.0,78291.0,0.127841]
[1743983527987,0.00083157,78292.0,78291.0,0.128481]
[1743983528188,0.00083157,78292.0,78291.0,0.1389384]
[1743983528388,0.00083157,78292.0,78291.0,0.4997384]
[1743983528591,0.00971395,78293.0,78292.0,0.1278393]
[1743983528892,0.22839304,78302.0,78294.0,0.1278361]
[1743983529092,0.1278285,78299.0,78294.0,0.1285161]
[1743983529400,0.19061568,78295.0,78294.0,0.1285161]
[1743983529698,0.00064,78295.0,78294.0,0.1285161]
[1743983529898,0.1284744,78295.0,78294.0,1.62840289]
[1743983530103,0.0639158,78297.0,78294.0,1.50068]
[1743983530283,0.0639158,78297.0,78296.0,0.1278328]
[1743983530690,0.0639158,78297.0,78296.0,0.1981]
[1743983530996,0.1278377,78293.0,78292.0,0.006]
[1743983531188,0.1278459,78288.0,78274.0,0.3608]
[1743983531390,0.1278459,78288.0,78275.0,0.1923]
[1743983532094,0.3130459,78288.0,78279.0,0.1278594]
[1743983532287,0.1852,78288.0,78287.0,0.36099157]
[1743983532492,0.1852,78296.0,78295.0,0.1278344]
[1743983532689,0.00019157,78302.0,78295.0,0.1278344]
[1743983532690,0.00019157,78302.0,78296.0,0.1278328]
[1743983532894,0.00971203,78297.0,78296.0,0.5182328]
[1743983533201,0.00019157,78302.0,78301.0,0.1278246]
[1743983533702,0.00019157,78302.0,78301.0,0.12760924]
[1743983534592,0.1852,78308.0,78304.0,0.127819]
[1743983534896,0.1278149,78307.0,78305.0,0.3891]
[1743983535201,0.1278149,78307.0,78305.0,0.38982]
[1743983535202,0.24183388,78306.0,78305.0,0.38982]
[1743983535389,0.6465395,78306.0,78305.0,0.38982]
[1743983535589,0.518723,78306.0,78305.0,0.38982]
[1743983535790,0.320223,78306.0,78305.0,0.5176381]
[1743983536086,0.320223,78306.0,78305.0,0.19803641]
[1743983536890,0.124323,78306.0,78305.0,0.32585451]
[1743983537097,0.15202317,78311.0,78307.0,0.0639074]
[1743983537395,0.15270317,78311.0,78310.0,0.1278099]
[1743983537591,0.15270317,78311.0,78310.0,0.1286099]
[1743983537799,0.16226797,78311.0,78310.0,0.1286099]
[1743983538191,0.0102448,78311.0,78310.0,0.1286099]
[1743983538396,0.15202317,78316.0,78312.0,0.1278067]
[1743983538599,0.001,78334.0,78329.0,0.1277789]
[1743983538798,0.0638862,78333.0,78329.0,0.36184]
[1743983539094,0.1277757,78331.0,78330.0,0.1949]
[1743983539300,0.1277757,78331.0,78330.0,0.19598]
[1743983539598,0.12881571,78331.0,78330.0,0.19598]
[1743983539796,0.32611571,78331.0,78330.0,0.19598]
[1743983540100,0.00019157,78338.0,78337.0,0.1277659]
[1743983540302,0.1973,78350.0,78344.0,0.1277545]
[1743983540597,0.3026087,78352.0,78351.0,0.1277431]
[1743983540793,0.37584521,78352.0,78351.0,0.0014]
[1743983540987,0.1277528,78345.0,78344.0,0.3608]
[1743983541188,0.1277528,78345.0,78344.0,0.00136]
[1743983541398,0.1277675,78337.0,78336.0,0.1277675]
[1743983541696,0.1277659,78337.0,78336.0,0.00136]
[1743983541901,0.2777659,78337.0,78336.0,0.00136]
[1743983542205,0.6156059,78337.0,78336.0,0.00136]
[1743983542404,0.1277773,78330.0,78329.0,0.00019144]
[1743983542589,0.1278148,78307.0,78306.0,0.3608]
[1743983542798,0.1278148,78307.0,78306.0,0.36176]
[1743983542993,0.1278148,78307.0,78306.0,0.00096]
[1743983543597,0.1278189,78305.0,78303.0,0.0639105]
[1743983543799,0.1278197,78304.0,78303.0,0.00096]
[1743983544102,0.3159197,78304.0,78303.0,0.1287814]
[1743983544305,0.3159197,78304.0,78303.0,0.00096]
[1743983544597,0.1881,78304.0,78303.0,0.1287814]
[1743983545300,0.3159197,78304.0,78303.0,0.1347814]
[1743983545506,0.127806,78313.0,78309.0,0.0639055]
[1743983545712,0.1881,78312.0,78311.0,0.1278075]
[1743983546003,0.1278148,78307.0,78306.0,0.1954]
[1743983546202,0.0639074,78307.0,78306.0,0.00104]
[1743983546796,0.07373435,78307.0,78306.0,0.00104]
[1743983546998,0.00982695,78307.0,78306.0,0.1288565]
[1743983547306,0.1278142,78308.0,78307.0,0.127813]
[1743983547602,0.1278142,78308.0,78307.0,0.489573]
[1743983547801,0.1278142,78308.0,78307.0,0.128773]
[1743983548007,0.1278142,78308.0,78307.0,0.00096]
[1743983548702,0.0639059,78309.0,78305.0,0.1278174]
[1743983548903,0.1278165,78306.0,78305.0,0.1278174]
[1743983549204,0.1278165,78306.0,78305.0,0.1287774]
[1743983549403,0.1278165,78306.0,78305.0,0.00096]
[1743983550001,0.1278165,78306.0,78305.0,1.50096]
[1743983550402,0.1278165,78306.0,78305.0,0.00096]
[1743983550705,0.4997165,78306.0,78305.0,0.00096]
[1743983551093,0.9466084,78306.0,78291.0,0.00102182]
[1743983551302,0.1278393,78292.0,78291.0,0.00102182]
[1743983551506,0.0639327,78276.0,78273.0,0.1278691]
[1743983551810,0.063932,78277.0,78272.0,0.187]
[1743983552107,0.1278688,78274.0,78272.0,0.3148718]
[1743983552302,0.1891,78273.0,78267.0,0.00121371]
[1743983552508,0.1891,78273.0,78268.0,0.1938]
[1743983552708,0.1278753,78270.0,78269.0,1.5]
[1743983553099,0.1278785,78268.0,78267.0,0.00121371]
[1743983553798,0.5021785,78268.0,78267.0,0.00121371]
[1743983554203,0.1278932,78259.0,78250.0,0.81036937]
[1743983554509,0.3743,78268.0,78258.0,0.3627168]
[1743983554707,0.1278932,78259.0,78258.0,0.3627168]
[1743983555006,0.1891,78260.0,78259.0,0.1278932]
[1743983555209,0.4247317,78278.0,78271.0,0.1278736]
[1743983555512,0.127872,78272.0,78271.0,0.00084]
[1743983555711,0.13805212,78272.0,78271.0,0.1288336]
[1743983555906,0.01018012,78272.0,78271.0,0.1288336]
[1743983556101,0.13805212,78272.0,78271.0,0.1288336]
[1743983556609,0.01018012,78272.0,78271.0,0.1288336]
[1743983556806,0.13737212,78272.0,78271.0,0.1288336]
[1743983557108,0.13821212,78272.0,78271.0,0.00096]
[1743983557607,1e-08,78272.0,78271.0,0.40659402]
[1743983558108,0.001,78310.0,78297.0,0.1278312]
[1743983558307,0.55406,78298.0,78297.0,0.00124]
[1743983558609,0.20307276,78298.0,78297.0,0.1290712]
[1743983559408,0.01057276,78298.0,78297.0,0.1290712]
[1743983559613,0.1925,78304.0,78303.0,0.1278214]
[1743983559906,0.20322838,78304.0,78303.0,0.8540214]
[1743983560102,0.20190838,78304.0,78303.0,0.8540214]
[1743983561199,0.32972808,78304.0,78303.0,0.8540214]
[1743983561406,0.20190838,78304.0,78303.0,0.8540214]
[1743983562014,0.20190838,78304.0,78303.0,0.0014]
[1743983562015,0.32972808,78304.0,78303.0,0.0014]
[1743983562206,0.127823,78302.0,78301.0,0.1278246]
[1743983562407,0.127823,78302.0,78301.0,0.1291846]
[1743983562605,0.127823,78302.0,78301.0,0.00136]
[1743983563010,0.38480838,78304.0,78303.0,0.1278214]
[1743983563209,0.38480838,78304.0,78303.0,0.1291414]
[1743983563409,0.51262808,78304.0,78303.0,0.1291414]
[1743983564615,0.00940838,78304.0,78303.0,0.1291414]
[1743983564819,0.00019157,78305.0,78304.0,0.1278197]
[1743983565019,0.00019157,78305.0,78304.0,0.3286397]
[1743983565318,0.00996063,78305.0,78304.0,0.5210397]
[1743983565518,0.12800967,78305.0,78304.0,0.20082]
[1743983565708,0.13748616,78305.0,78304.0,0.00132]
[1743983566019,0.1278328,78296.0,78287.0,0.3608]
[1743983566322,0.1278328,78296.0,78295.0,0.36176]
[1743983567012,0.5038328,78296.0,78295.0,0.36176]
[1743983567517,0.5038328,78296.0,78295.0,0.4895944]
[1743983567518,0.376,78296.0,78295.0,0.4895944]
[1743983567719,0.1838,78296.0,78295.0,0.4895944]
[1743983568620,0.1838,78296.0,78295.0,0.6873944]
[1743983568921,0.3116328,78296.0,78295.0,0.6873944]
[1743983569922,0.1838,78296.0,78295.0,0.6873944]
[1743983570115,0.3116328,78296.0,78295.0,0.55956]
[1743983571424,0.6724328,78296.0,78295.0,0.00096]
[1743983571722,0.127841,78291.0,78290.0,0.00019157]
[1743983572525,0.501141,78291.0,78290.0,0.00019157]
[1743983573228,0.51231824,78291.0,78290.0,0.00019157]
[1743983573521,0.1278655,78276.0,78275.0,0.1871]
[1743983573826,0.1278655,78276.0,78275.0,0.18806]
[1743983574420,0.5151655,78276.0,78275.0,0.18806]
[1743983574726,0.1904,78276.0,78275.0,0.3159271]
[1743983575522,0.1904,78276.0,78269.0,0.1817]
[1743983575523,0.1278769,78269.0,78268.0,0.00019157]
[1743983575727,0.1278769,78269.0,78259.0,0.3608]
[1743983575728,0.1278916,78260.0,78259.0,0.3608]
[1743983575926,0.0639492,78256.0,78249.0,0.00972856]
[1743983576129,0.4887079,78250.0,78249.0,0.00972856]
[1743983576319,0.1279145,78246.0,78245.0,0.1932]
[1743983576625,0.1279161,78245.0,78244.0,0.37555136]
[1743983576823,0.1878,78245.0,78244.0,0.50346906]
[1743983577026,0.3157161,78245.0,78244.0,0.56875136]
[1743983577421,0.32551276,78245.0,78244.0,0.37555136]
[1743983577729,0.32551276,78245.0,78244.0,0.38155136]
[1743983579026,0.32551276,78245.0,78244.0,0.006]
[1743983579935,0.1279177,78244.0,78243.0,5e-08]
[1743983580125,0.127957,78220.0,78218.0,0.1849]
[1743983580327,0.128597,78220.0,78219.0,0.00166276]
[1743983580533,0.1279717,78211.0,78200.0,0.1]
[1743983580739,0.1287317,78211.0,78204.0,0.1849]
[1743983580932,0.1287317,78211.0,78210.0,0.00259797]
[1743983581238,0.1287317,78211.0,78210.0,0.00191797]
[1743983581536,0.1279848,78203.0,78200.0,0.1]
[1743983581740,0.12732,78203.0,78202.0,0.37619136]
[1743983582039,0.12648,78203.0,78202.0,0.50417786]
[1743983582241,0.12736,78203.0,78202.0,0.50417786]
[1743983582832,0.32436,78203.0,78202.0,0.50417786]
[1743983583033,0.4523448,78203.0,78202.0,0.37619136]
[1743983583342,0.6486448,78203.0,78202.0,0.37619136]
[1743983583542,0.4533448,78203.0,78202.0,0.37619136]
[1743983583742,0.32536,78203.0,78202.0,0.50417786]
[1743983583940,0.3608,78212.0,78202.0,0.50417786]
[1743983583941,0.4247712,78229.0,78208.0,0.0639881]
[1743983584141,0.0639761,78223.0,78209.0,0.3828]
[1743983584341,0.1279629,78217.0,78212.0,0.063985]
[1743983584536,0.00068,78217.0,78213.0,0.3828]
[1743983584736,0.0639795,78219.0,78218.0,0.1279603]
[1743983584944,0.0647795,78219.0,78218.0,1.5008]
[1743983585135,0.197,78222.0,78219.0,0.0639787]
[1743983585331,0.1279554,78221.0,78220.0,0.1279564]
[1743983585540,0.01063185,78221.0,78218.0,1.5]
[1743983585741,0.1279586,78219.0,78218.0,0.00096]
[1743983586039,0.1279881,78201.0,78195.0,0.00102308]
[1743983586350,0.4894281,78201.0,78200.0,0.10096]
[1743983587140,0.00064,78201.0,78200.0,0.2289497]
[1743983587844,0.0001917,78208.0,78204.0,0.063991]
[1743983588047,0.0001917,78208.0,78207.0,0.1279783]
[1743983588242,0.0001917,78208.0,78207.0,0.1289383]